fUSD/lending_fUSD_20241107
["ID","MTS","AMOUNT","RATE_DAILY","PERIOD"]
[341537086,1730967043427,-500.0,0.00030136,4]
[341537087,1730967043437,-525.86,0.00030136,4]
[341537088,1730967043446,-511.83,0.00030136,4]
[341537089,1730967043456,-500.0,0.00030136,4]
[341537090,1730967043465,-535.4,0.00030136,4]
[341537091,1730967043474,-607.23179667,0.00030136,4]
[341537092,1730967043484,-1010.48,0.00030136,4]
[341537093,1730967043493,-1003.13,0.00030136,4]
[341537094,1730967043503,-500.0,0.00030136,4]
[341537096,1730967043512,-500.0,0.00030136,4]
[341537098,1730967043521,-500.0,0.00030136,4]
[341537099,1730967043531,-500.0,0.00030136,4]
[341537100,1730967043540,-602.31497819,0.00030136,4]
[341537101,1730967043550,-808.8,0.00030136,4]
[341537102,1730967043559,-500.0,0.00030136,4]
[341537103,1730967043568,-500.0,0.00030136,4]
[341537104,1730967043578,-500.0,0.00030136,4]
[341537105,1730967043587,-500.0,0.00030136,4]
[341537106,1730967043596,-1311.98,0.00030136,4]
[341537107,1730967043606,-500.0,0.00030136,4]
[341537108,1730967043615,-500.0,0.00030136,4]
[341537109,1730967043625,-500.0,0.00030136,4]
[341537110,1730967043635,-930.55,0.00030136,4]
[341537112,1730967043644,-500.0,0.00030136,4]
[341537115,1730967043653,-677.09,0.00030136,4]
[341537118,1730967043663,-500.0,0.00030136,4]
[341537121,1730967043673,-500.0,0.00030136,4]
[341537124,1730967043682,-703.05,0.00030136,4]
[341537127,1730967043691,-703.24,0.00030136,4]
[341537129,1730967043701,-3427.27,0.00030136,4]
[341537131,1730967043711,-1719.29,0.00030136,4]
[341537132,1730967043721,-500.0,0.00030136,4]
[341537133,1730967043730,-500.0,0.00030136,4]
[341537134,1730967043739,-500.0,0.00030136,4]
[341537135,1730967043749,-190.29151567,0.00030136,4]
[341537136,1730967043758,-500.0,0.00030136,4]
[341537137,1730967043769,-1305.71,0.00030136,4]
[341537138,1730967043780,-501.75,0.00030136,4]
[341537139,1730967043790,-500.0,0.00030136,4]
[341537140,1730967043799,-494.31737891,0.00030136,4]
[341537141,1730967043809,-500.0,0.00030136,4]
[341537142,1730967043818,-500.0,0.00030136,4]
[341537143,1730967043827,-500.0,0.00030136,4]
[341537144,1730967043837,-729.48,0.00030136,4]
[341537145,1730967043846,-555.11,0.00030136,4]
[341537146,1730967043856,-712.04,0.00030136,4]
[341537147,1730967043865,-500.0,0.00030136,4]
[341537148,1730967043875,-764.13,0.00030136,4]
[341537149,1730967043884,-500.0,0.00030136,4]
[341537150,1730967043894,-1473.06,0.00030136,4]
[341537151,1730967043903,-500.0,0.00030136,4]
[341537152,1730967043913,-500.0,0.00030136,4]
[341537153,1730967043923,-500.0,0.00030136,4]
[341537154,1730967043932,-1225.57,0.00030136,4]
[341537155,1730967043942,-500.0,0.00030136,4]
[341537156,1730967043951,-500.0,0.00030136,4]
[341537157,1730967043960,-1905.4,0.00030136,4]
[341537158,1730967043970,-798.88,0.00030136,4]
[341537159,1730967043979,-500.0,0.00030136,4]
[341537160,1730967043988,-500.0,0.00030136,4]
[341537161,1730967043997,-500.0,0.00030136,4]
[341537162,1730967044007,-500.0,0.00030136,4]
[341537163,1730967044021,-500.0,0.00030136,4]
[341537164,1730967044032,-500.0,0.00030136,4]
[341537165,1730967044041,-500.0,0.00030136,4]
[341537166,1730967044052,-500.0,0.00030136,4]
[341537167,1730967044063,-565.52,0.00030136,4]
[341537168,1730967044073,-500.0,0.00030136,4]
[341537169,1730967044083,-510.41446795,0.00030136,4]
[341537170,1730967044092,-258.70914479,0.00030136,4]
[341537171,1730967044102,-631.83,0.00030136,4]
[341537172,1730967044112,-509.68,0.00030136,4]
[341537173,1730967044122,-500.0,0.00030136,4]
[341537174,1730967044133,-500.0,0.00030136,4]
[341537175,1730967044144,-500.0,0.00030136,4]
[341537176,1730967044155,-612.04,0.00030136,4]
[341537177,1730967044164,-500.0,0.00030136,4]
[341537178,1730967044174,-500.0,0.00030136,4]
[341537179,1730967044184,-500.0,0.00030136,4]
[341537180,1730967044193,-493.49561297,0.00030136,4]
[341537181,1730967044203,-542.99,0.00030136,4]
[341537182,1730967044213,-1165.21,0.00030136,4]
[341537183,1730967044223,-500.0,0.00030136,4]
[341537184,1730967044233,-500.0,0.00030136,4]
[341537185,1730967044243,-500.0,0.00030136,4]
[341537186,1730967044253,-500.0,0.00030136,4]
[341537187,1730967044262,-523.80150356,0.00030136,4]
[341537188,1730967044271,-503.37,0.00030136,4]
[341537189,1730967044282,-500.0,0.00030136,4]
[341537190,1730967044291,-525.42,0.00030136,4]
[341537191,1730967044301,-500.0,0.00030136,4]
[341537192,1730967044311,-524.53,0.00030136,4]
[341537193,1730967044320,-527.83,0.00030136,4]
[341537194,1730967044330,-500.0,0.00030136,4]
[341537195,1730967044340,-1630.84,0.00030136,4]
[341537196,1730967044349,-500.0,0.00030136,4]
[341537197,1730967044359,-500.0,0.00030136,4]
[341537198,1730967044368,-500.0,0.00030136,4]
[341537199,1730967044377,-892.56,0.00030136,4]
[341537200,1730967044386,-500.0,0.00030136,4]
[341537201,1730967044395,-528.24,0.00030136,4]
[341537202,1730967044404,-500.0,0.00030136,4]
[341537203,1730967044414,-900.31,0.00030136,4]
[341537204,1730967044423,-1556.22,0.00030136,4]
[341537206,1730967044433,-508.20050735,0.00030136,4]
[341537208,1730967044443,-582.93,0.00030136,4]
[341537210,1730967044453,-500.0,0.00030136,4]
[341537212,1730967044464,-500.0,0.00030136,4]
[341537214,1730967044473,-500.0,0.00030136,4]
[341537216,1730967044483,-500.0,0.00030136,4]
[341537218,1730967044492,-500.0,0.00030136,4]
[341537219,1730967044502,-871.26,0.00030136,4]
[341537220,1730967044512,-500.0,0.00030136,4]
[341537221,1730967044521,-1104.03,0.00030136,4]
[341537222,1730967044531,-981.98,0.00030136,4]
[341537223,1730967044541,-500.0,0.00030136,4]
[341537224,1730967044550,-500.0,0.00030136,4]
[341537225,1730967044560,-1172.11,0.00030136,4]
[341537226,1730967044569,-500.0,0.00030136,4]
[341537227,1730967044579,-500.0,0.00030136,4]
[341537228,1730967044588,-977.77,0.00030136,4]
[341537230,1730967044597,-522.78412302,0.00030136,4]
[341537231,1730967044606,-500.0,0.00030136,4]
[341537233,1730967044616,-500.0,0.00030136,4]
[341537235,1730967044626,-3041.14,0.00030136,4]
[341537237,1730967044635,-500.0,0.00030136,4]
[341537239,1730967044645,-524.02,0.00030136,4]
[341537241,1730967044654,-300.0,0.00030136,4]
[341537242,1730967044663,-726.43,0.00030136,4]
[341537244,1730967044672,-500.0,0.00030136,4]
[341537246,1730967044682,-500.0,0.00030136,4]
[341537248,1730967044691,-500.0,0.00030136,4]
[341537250,1730967044700,-1641.6,0.00030136,4]
[341537251,1730967044709,-500.0,0.00030136,4]
[341537253,1730967044719,-7146.74,0.00030136,4]
[341537255,1730967044728,-500.0,0.00030136,4]
[341537256,1730967044739,-1754.85,0.00030136,4]
[341537257,1730967044749,-500.0,0.00030136,4]
[341537258,1730967044758,-500.0,0.00030136,4]
[341537259,1730967044768,-1201.23,0.00030136,4]
[341537260,1730967044779,-500.0,0.00030136,2]
[341537261,1730967044789,-500.0,0.00030136,4]
[341537262,1730967044798,-793.72,0.00030136,4]
[341537263,1730967044808,-500.0,0.00030136,4]
[341537264,1730967044818,-500.0,0.00030136,4]
[341537265,1730967044828,-5584.62,0.00030136,4]
[341537266,1730967044838,-561.0,0.00030136,4]
[341537267,1730967044848,-500.0,0.00030136,4]
[341537268,1730967044857,-882.24,0.00030136,4]
[341537269,1730967044867,-500.0,0.00030136,4]
[341537270,1730967044877,-641.7,0.00030136,4]
[341537271,1730967044887,-500.0,0.00030136,4]
[341537272,1730967044897,-522.32,0.00030136,4]
[341537273,1730967044907,-882.64,0.00030136,4]
[341537274,1730967044917,-1444.96,0.00030136,4]
[341537275,1730967044926,-1166.44,0.00030136,4]
[341537276,1730967044936,-924.09,0.00030136,4]
[341537277,1730967044945,-571.62755008,0.00030136,4]
[341537278,1730967044954,-960.79,0.00030136,4]
[341537279,1730967044964,-500.0,0.00030136,4]
[341537280,1730967044978,-500.0,0.00030136,4]
[341537281,1730967044988,-925.53,0.00030136,4]
[341537282,1730967044997,-1284.65,0.00030136,4]
[341537283,1730967045007,-1401.47500688,0.00030136,4]
[341537284,1730967045032,-539.74499312,0.00030136,4]
[341537285,1730967045042,-421.52704502,0.00030136,4]
[341537286,1730967045856,-78.47295498,0.00030136,4]
[341537287,1730967045866,-894.07,0.00030136,4]
[341537288,1730967045877,-500.0,0.00030136,4]
[341537289,1730967045886,-1381.43,0.00030136,4]
[341537290,1730967045896,-500.0,0.00030136,4]
[341537291,1730967045906,-500.0,0.00030136,4]
[341537292,1730967045916,-500.0,0.00030136,4]
[341537293,1730967045927,-500.0,0.00030136,4]
[341537294,1730967045937,-607.65,0.00030136,4]
[341537295,1730967045947,-633.76,0.00030136,4]
[341537296,1730967045957,-5534.15,0.00030136,4]
[341537298,1730967045967,-500.0,0.00030136,4]
[341537303,1730967045977,-500.0,0.00030136,4]
[341537304,1730967046119,-500.0,0.00030136,4]
[341537305,1730967046131,-674.9,0.00030136,4]
[341537306,1730967046141,-849.89,0.00030136,4]
[341537307,1730967046152,-500.0,0.00030136,4]
[341537308,1730967046163,-564.86,0.00030136,4]
[341537309,1730967046173,-500.0,0.00030136,4]
[341537310,1730967046184,-500.0,0.00030136,4]
[341537311,1730967046195,-500.0,0.00030136,4]
[341537312,1730967046205,-500.0,0.00030136,4]
[341537313,1730967046215,-253.43084907,0.00030136,4]
[341537314,1730967046229,-246.56915093,0.00030136,4]
[341537315,1730967046241,-500.0,0.00030136,4]
[341537316,1730967046252,-180.66618192,0.00030136,4]
[341537317,1730967046288,-19.4867337,0.00030136,4]
[341537318,1730967046305,-299.84708438,0.00030136,4]
[341537319,1730967046316,-1345.53,0.00030136,4]
[341537320,1730967046326,-500.0,0.00030136,4]
[341537321,1730967046337,-550.53,0.00030136,4]
[341537322,1730967046347,-500.0,0.00030136,4]
[341537323,1730967046357,-712.52,0.00030136,4]
[341537324,1730967046367,-583.87,0.00030136,4]
[341537325,1730967046377,-1619.7,0.00030136,4]
[341537326,1730967046387,-626.02,0.00030136,4]
[341537327,1730967046397,-500.0,0.00030136,4]
[341537328,1730967046407,-500.0,0.00030136,4]
[341537329,1730967046417,-948.35,0.00030136,4]
[341537330,1730967046427,-544.45,0.00030136,4]
[341537331,1730967046437,-500.0,0.00030136,4]
[341537332,1730967046446,-500.0,0.00030136,4]
[341537333,1730967046456,-1433.33,0.00030136,4]
[341537334,1730967046466,-519.93,0.00030136,4]
[341537335,1730967046475,-500.0,0.00030136,4]
[341537336,1730967046485,-2699.03,0.00030136,4]
[341537337,1730967046494,-500.0,0.00030136,4]
[341537338,1730967046504,-500.0,0.00030136,4]
[341537339,1730967046514,-500.0,0.00030136,4]
[341537340,1730967046525,-500.0,0.00030136,4]
[341537341,1730967046536,-916.07,0.00030136,4]
[341537342,1730967046547,-500.0,0.00030136,4]
[341537343,1730967046557,-500.0,0.00030136,4]
[341537344,1730967046568,-500.0,0.00030136,4]
[341537345,1730967046577,-2561.71,0.00030136,4]
[341537346,1730967046587,-2617.06,0.00030136,4]
[341537347,1730967046597,-500.0,0.00030136,4]
[341537348,1730967046607,-500.0,0.00030136,4]
[341537349,1730967046616,-1150.72,0.00030136,4]
[341537350,1730967046626,-516.68,0.00030136,4]
[341537351,1730967046635,-500.0,0.00030136,4]
[341537352,1730967046645,-500.0,0.00030136,4]
[341537353,1730967046655,-1035.33,0.00030136,4]
[341537354,1730967046665,-500.0,0.00030136,4]
[341537355,1730967046675,-1295.89,0.00030136,4]
[341537356,1730967046684,-500.0,0.00030136,4]
[341537357,1730967046694,-531.96,0.00030136,4]
[341537358,1730967046704,-938.65,0.00030136,4]
[341537359,1730967046714,-500.0,0.00030136,4]
[341537360,1730967046725,-2011.34,0.00030136,4]
[341537361,1730967046735,-897.91,0.00030136,4]
[341537362,1730967046745,-546.16,0.00030136,4]
[341537363,1730967046756,-500.0,0.00030136,4]
[341537364,1730967046766,-880.99,0.00030136,4]
[341537365,1730967046777,-500.0,0.00030136,4]
[341537366,1730967046788,-938.5,0.00030136,4]
[341537367,1730967046798,-523.53,0.00030136,4]
[341537368,1730967046807,-500.0,0.00030136,4]
[341537369,1730967046817,-500.0,0.00030136,4]
[341537370,1730967046827,-500.0,0.00030136,4]
[341537371,1730967046836,-1723.49,0.00030136,4]
[341537372,1730967046845,-500.97,0.00030136,4]
[341537373,1730967046855,-500.0,0.00030136,4]
[341537374,1730967046864,-511.38,0.00030136,4]
[341537375,1730967046874,-1073.45,0.00030136,4]
[341537376,1730967046883,-500.0,0.00030136,4]
[341537377,1730967046892,-2224.57,0.00030136,4]
[341537378,1730967046901,-782.35,0.00030136,4]
[341537379,1730967046911,-500.0,0.00030136,4]
[341537380,1730967046920,-500.0,0.00030136,4]
[341537381,1730967046930,-503.38255934,0.00030136,4]
[341537382,1730967046940,-1192.37,0.00030136,4]
[341537383,1730967046949,-2434.55,0.00030136,4]
[341537384,1730967046958,-500.0,0.00030136,4]
[341537385,1730967046967,-542.36,0.00030136,4]
[341537386,1730967046977,-680.34,0.00030136,4]
[341537387,1730967046986,-500.0,0.00030136,4]
[341537388,1730967046995,-1454.2,0.00030136,4]
[341537389,1730967047004,-500.0,0.00030136,4]
[341537390,1730967047013,-3491.0,0.00030136,4]
[341537391,1730967047022,-1918.47,0.00030136,4]
[341537392,1730967047032,-500.0,0.00030136,4]
[341537393,1730967047042,-598.71325577,0.00030136,4]
[341537394,1730967047054,-500.0,0.00030136,4]
[341537395,1730967047063,-500.0,0.00030136,4]
[341537396,1730967047073,-500.0,0.00030136,4]
[341537397,1730967047082,-2509.58,0.00030136,4]
[341537398,1730967047094,-500.0,0.00030136,4]
[341537399,1730967047104,-569.34,0.00030136,4]
[341537400,1730967047113,-500.0,0.00030136,4]
[341537401,1730967047124,-500.0,0.00030136,4]
[341537402,1730967047134,-1685.21,0.00030136,4]
[341537403,1730967047144,-500.0,0.00030136,4]
[341537404,1730967047154,-500.0,0.00030136,4]
[341537405,1730967047163,-619.92,0.00030136,4]
[341537406,1730967047173,-1153.55,0.00030136,4]
[341537407,1730967047182,-500.0,0.00030136,4]
[341537408,1730967047192,-500.0,0.00030136,4]
[341537409,1730967047201,-500.0,0.00030136,4]
[341537410,1730967047211,-796.39,0.00030136,4]
[341537411,1730967047221,-500.0,0.00030136,4]
[341537412,1730967047230,-500.0,0.00030136,4]
[341537413,1730967047241,-555.85874397,0.00030136,4]
[341537414,1730967047250,-500.0,0.00030136,4]
[341537415,1730967047259,-525.84,0.00030136,4]
[341537416,1730967047269,-500.0,0.00030136,4]
[341537417,1730967047279,-1303.45,0.00030136,4]
[341537418,1730967047289,-500.0,0.00030136,4]
[341537419,1730967047298,-500.0,0.00030136,4]
[341537420,1730967047308,-943.58,0.00030136,4]
[341537421,1730967047318,-576.39,0.00030136,4]
[341537422,1730967047327,-500.0,0.00030136,4]
[341537423,1730967047336,-500.0,0.00030136,4]
[341537424,1730967047345,-526.31688945,0.00030136,4]
[341537425,1730967047354,-560.13624298,0.00030136,4]
[341537426,1730967047364,-728.19,0.00030136,4]
[341537427,1730967047373,-1387.52,0.00030136,4]
[341537428,1730967047383,-500.0,0.00030136,4]
[341537429,1730967047393,-500.0,0.00030136,4]
[341537430,1730967047403,-1903.76,0.00030136,4]
[341537431,1730967047412,-500.0,0.00030136,4]
[341537432,1730967047421,-807.89,0.00030136,4]
[341537433,1730967047430,-500.0,0.00030136,4]
[341537434,1730967047439,-2958.05,0.00030136,4]
[341537435,1730967047449,-3698.55,0.00030136,4]
[341537436,1730967047458,-771.43,0.00030136,4]
[341537437,1730967047467,-2400.53,0.00030136,4]
[341537438,1730967047477,-500.0,0.00030136,4]
[341537439,1730967047485,-722.2,0.00030136,4]
[341537440,1730967047495,-886.94,0.00030136,4]
[341537441,1730967047504,-1643.85,0.00030136,4]
[341537442,1730967047513,-778.6,0.00030136,4]
[341537443,1730967047523,-1445.43,0.00030136,4]
[341537444,1730967047534,-3182.71,0.00030136,4]
[341537445,1730967047543,-2781.82,0.00030136,4]
[341537446,1730967047553,-500.0,0.00030136,4]
[341537447,1730967047562,-1509.58,0.00030136,4]
[341537448,1730967047571,-500.0,0.00030136,4]
[341537449,1730967047581,-1674.76,0.00030136,4]
[341537450,1730967047590,-500.0,0.00030136,4]
[341537451,1730967047600,-500.56,0.00030136,4]
[341537452,1730967047609,-500.0,0.00030136,4]
[341537453,1730967047618,-931.82,0.00030136,4]
[341537454,1730967047627,-5085.85,0.00030136,4]
[341537455,1730967047637,-500.0,0.00030136,4]
[341537456,1730967047646,-539.35,0.00030136,4]
[341537457,1730967047655,-1342.59,0.00030136,4]
[341537458,1730967047665,-2019.93,0.00030136,4]
[341537459,1730967047675,-500.0,0.00030136,4]
[341537460,1730967047685,-500.0,0.00030136,4]
[341537461,1730967047694,-507.46,0.00030136,4]
[341537462,1730967047703,-571.35863426,0.00030136,4]
[341537463,1730967047713,-500.0,0.00030136,4]
[341537464,1730967047722,-500.0,0.00030136,4]
[341537465,1730967047731,-500.0,0.00030136,4]
[341537466,1730967047741,-789.32,0.00030136,4]
[341537467,1730967047750,-1800.94,0.00030136,4]
[341537468,1730967047760,-607.2,0.00030136,4]
[341537469,1730967047769,-500.0,0.00030136,4]
[341537470,1730967047780,-1508.06,0.00030136,4]
[341537471,1730967047790,-913.23,0.00030136,4]
[341537472,1730967047799,-702.12,0.00030136,4]
[341537473,1730967047809,-2007.76,0.00030136,4]
[341537474,1730967047819,-500.0,0.00030136,4]
[341537475,1730967047828,-318.56535318,0.00030136,4]
[341537476,1730967047838,-667.39,0.00030136,4]
[341537477,1730967047847,-500.0,0.00030136,4]
[341537478,1730967047857,-1757.4,0.00030136,4]
[341537479,1730967047866,-555.39991855,0.00030136,4]
[341537480,1730967047876,-500.0,0.00030136,4]
[341537481,1730967047885,-795.28,0.00030136,4]
[341537482,1730967047895,-660.19,0.00030136,4]
[341537483,1730967047904,-500.0,0.00030136,4]
[341537484,1730967047914,-1650.53,0.00030136,4]
[341537485,1730967047923,-500.0,0.00030136,4]
[341537486,1730967047932,-500.0,0.00030136,4]
[341537487,1730967047943,-500.0,0.00030136,4]
[341537488,1730967047953,-500.0,0.00030136,4]
[341537489,1730967047963,-500.0,0.00030136,4]
[341537490,1730967047973,-1719.93,0.00030136,4]
[341537491,1730967047983,-764.72,0.00030136,4]
[341537492,1730967047992,-465.45873301,0.00030136,4]
[341537493,1730967048002,-865.01,0.00030136,4]
[341537494,1730967048011,-563.45,0.00030136,4]
[341537495,1730967048020,-676.47,0.00030136,4]
[341537496,1730967048033,-500.0,0.00030136,4]
[341537497,1730967048043,-1354.42,0.00030136,4]
[341537498,1730967048055,-1371.16,0.00030136,4]
[341537499,1730967048067,-500.0,0.00030136,4]
[341537500,1730967048077,-602.89,0.00030136,4]
[341537501,1730967048087,-500.0,0.00030136,4]
[341537502,1730967048098,-500.0,0.00030136,4]
[341537503,1730967048109,-505.20025318,0.00030136,4]
[341537504,1730967048119,-2679.19,0.00030136,4]
[341537505,1730967048128,-500.0,0.00030136,4]
[341537506,1730967048140,-807.49,0.00030136,4]
[341537507,1730967048150,-500.0,0.00030136,4]
[341537508,1730967048160,-1078.31,0.00030136,4]
[341537509,1730967048170,-1804.8,0.00030136,4]
[341537510,1730967048180,-580.83,0.00030136,4]
[341537511,1730967048190,-500.0,0.00030136,4]
[341537512,1730967048199,-500.0,0.00030136,4]
[341537513,1730967048209,-761.84,0.00030137,2]
[341537514,1730967048219,-761.84,0.00030137,2]
[341537515,1730967048229,-761.84,0.00030137,2]
[341537516,1730967048239,-1115.04,0.00030137,2]
[341537517,1730967048249,-190.13015405,0.00030173,2]
[341537518,1730967048258,-183.21,0.00030236,2]
[341537519,1730967048267,-1989.0,0.00030246,2]
[341537520,1730967048279,-559.0,0.00030246,2]
[341537521,1730967048289,-1795.0,0.00030246,2]
[341537522,1730967048299,-813.0,0.00030246,2]
[341537523,1730967048309,-2908.0,0.00030246,2]
[341537524,1730967048318,-1258.0,0.00030246,2]
[341537525,1730967048328,-3378.0,0.00030246,2]
[341537526,1730967048653,-174.77667328,0.0003031,2]
[341537527,1730967048663,-183.21,0.00030387,2]
[341537528,1730967048673,-709.72853,0.000304,2]
[341537529,1730967048683,-500.0,0.00030408,4]
[341537530,1730967048693,-500.0,0.00030408,4]
[341537531,1730967048702,-1165.21,0.00030408,4]
[341537532,1730967048712,-564.51585971,0.00030409,4]
[341537533,1730967048721,-500.0,0.00030409,4]
[341537534,1730967048731,-500.0,0.00030409,4]
[341537535,1730967048740,-614.9800872,0.00030409,2]
[341537536,1730967048750,-500.0,0.00030409,4]
[341537537,1730967048760,-500.0,0.00030409,4]
[341537538,1730967048769,-500.0,0.00030409,4]
[341537539,1730967048781,-500.0,0.00030409,4]
[341537540,1730967048790,-500.0,0.00030409,4]
[341537541,1730967048801,-500.0,0.00030409,4]
[341537542,1730967048810,-500.0,0.00030409,4]
[341537543,1730967048820,-500.0,0.00030409,4]
[341537544,1730967048830,-500.0,0.00030409,4]
[341537545,1730967048839,-500.0,0.00030409,4]
[341537546,1730967048849,-500.0,0.00030409,4]
[341537547,1730967048858,-500.0,0.00030409,4]
[341537548,1730967048868,-500.0,0.00030409,4]
[341537549,1730967048878,-177.15375328,0.00030409,4]
[341537550,1730967048887,-500.0,0.00030409,4]
[341537551,1730967048897,-500.0,0.00030409,4]
[341537552,1730967048906,-500.0,0.00030409,4]
[341537553,1730967048916,-502.53,0.00030409,4]
[341537554,1730967048926,-847.4,0.00030409,4]
[341537555,1730967048936,-500.0,0.00030409,4]
[341537556,1730967048945,-660.39,0.00030409,4]
[341537557,1730967048955,-500.0,0.00030409,4]
[341537558,1730967048964,-1094.1,0.00030409,4]
[341537559,1730967048974,-500.0,0.00030409,4]
[341537560,1730967048983,-619.01,0.00030409,4]
[341537561,1730967048993,-500.0,0.00030409,4]
[341537562,1730967049002,-500.0,0.00030409,4]
[341537563,1730967049011,-675.4,0.00030409,4]
[341537564,1730967049021,-500.0,0.00030409,4]
[341537565,1730967049033,-365.73322401,0.00030409,4]
[341537566,1730967049042,-500.0,0.00030409,4]
[341537567,1730967049052,-666.69,0.00030409,4]
[341537568,1730967049065,-1311.48,0.00030409,4]
[341537569,1730967049075,-1546.77,0.00030409,4]
[341537570,1730967049084,-2135.47,0.00030409,4]
[341537571,1730967049094,-1199.73,0.00030409,4]
[341537572,1730967049106,-500.0,0.00030409,4]
[341537573,1730967049116,-1344.0,0.00030409,4]
[341537574,1730967049125,-1558.52,0.00030409,4]
[341537575,1730967049137,-1113.41,0.00030409,4]
[341537576,1730967049146,-1443.54,0.00030409,4]
[341537577,1730967049157,-500.0,0.00030409,4]
[341537578,1730967049166,-1519.86,0.00030409,4]
[341537579,1730967049177,-1272.13,0.00030409,4]
[341537580,1730967049186,-500.0,0.00030409,4]
[341537581,1730967049196,-1826.91,0.00030409,4]
[341537582,1730967049206,-500.0,0.00030409,4]
[341537583,1730967049217,-1477.33,0.00030409,4]
[341537584,1730967049228,-1826.58,0.00030409,4]
[341537585,1730967049238,-692.0,0.00030409,4]
[341537586,1730967049247,-2439.02,0.00030409,4]
[341537587,1730967049257,-1331.08,0.00030409,4]
[341537588,1730967049266,-2000.0,0.00030409,4]
[341537589,1730967049277,-1082.91,0.00030409,4]
[341537590,1730967049286,-579.74,0.00030409,4]
[341537591,1730967049296,-500.0,0.00030409,4]
[341537592,1730967049305,-1165.21,0.00030409,4]
[341537593,1730967049314,-500.0,0.00030409,4]
[341537594,1730967049324,-1130.98,0.00030409,4]
[341537595,1730967049333,-500.0,0.00030409,4]
[341537596,1730967049342,-824.36,0.00030409,4]
[341537597,1730967049352,-1843.63,0.00030409,4]
[341537598,1730967049361,-513.8,0.00030409,4]
[341537599,1730967049371,-151.0,0.00030409,7]
[341537600,1730967049380,-1195.5,0.00030409,4]
[341537601,1730967049389,-983.13,0.00030409,4]
[341537602,1730967049399,-151.0,0.00030409,7]
[341537603,1730967049409,-500.0,0.00030409,4]
[341537604,1730967049418,-1056.14,0.00030409,4]
[341537605,1730967049428,-151.0,0.00030409,7]
[341537606,1730967049438,-988.76,0.00030409,4]
[341537607,1730967049448,-500.0,0.00030409,4]
[341537608,1730967049458,-1698.98,0.00030409,4]
[341537609,1730967049468,-2070.07,0.00030409,4]
[341537610,1730967049478,-1678.97,0.00030409,4]
[341537611,1730967049488,-855.02,0.00030409,4]
[341537612,1730967049498,-856.79,0.00030409,4]
[341537613,1730967049507,-1387.52,0.00030409,4]
[341537614,1730967049517,-602.89,0.00030409,4]
[341537615,1730967049530,-300.993862,0.0003041,4]
[341537616,1730967049540,-500.0,0.0003041,4]
[341537617,1730967049549,-500.0,0.0003041,4]
[341537618,1730967049559,-293.395845,0.0003041,4]
[341537619,1730967049569,-777.0,0.0003041,4]
[341537620,1730967049579,-500.0,0.0003041,4]
[341537621,1730967049588,-500.0,0.0003041,4]
[341537622,1730967049599,-500.0,0.0003041,4]
[341537623,1730967049609,-500.0,0.0003041,4]
[341537624,1730967049618,-919.27,0.0003041,4]